Cogmind - Beta 10.2 @@@ ROGUE MODE // 2021.10.14 @ 15:26:09 Player: Patches Result: Destroyed by G-34 Mercenary with Small Laser Performance ------------- Evolutions (0) 0 Regions Visited (2) 400 Robots Destroyed (37) 185 Value Destroyed (627) 627 Prototype IDs (0) 0 Alien Tech Used (0) 0 Bonus (0) 0 TOTAL SCORE: 1212 Bonus ------- None Cogmind --------- Core Integrity 0/250 Matter 143/300 Energy 113/125 System Corruption 1% Temperature Cool (361) Movement Core (800) Ox15 Location -10/Mines Parts ------- > --- POWER (1) -------- Light Ion Engine > --- PROPULSION (2) --- (None) > --- UTILITY (2) ------ Large Storage Unit Large Storage Unit > --- WEAPON (2) ------- Spread Laser Bore Cannon > --- INVENTORY (16) --- Aluminum Leg Aluminum Leg Aluminum Leg Heat Sink Visual Processing Unit Transport Network Coupler Improved Targeting Computer Core Shielding Utility Shielding Hacking Suite EM Pulse Gun Spread Laser Peak State ------------ > --- POWER ------------ Ion Engine > --- PROPULSION ------- Aluminum Leg Aluminum Leg > --- UTILITY ---------- Large Storage Unit Large Storage Unit > --- WEAPON ----------- Beam Cannon Bore Cannon > --- INVENTORY -------- Light Ion Engine Aluminum Leg Aluminum Leg Aluminum Leg Heat Sink Visual Processing Unit Transport Network Coupler Improved Targeting Computer Core Shielding Utility Shielding Hacking Suite EM Pulse Gun Spread Laser Spread Laser [Rating: 13] Favorites ----------- Power Ion Engine Engine Ion Engine Propulsion Aluminum Leg Leg Aluminum Leg Wheel Wheel Utility Large Storage Unit Device Tractor Beam Storage Large Storage Unit Weapon Medium Laser Energy Gun Medium Laser Energy Cannon Beam Cannon Ballistic Gun Light Assault Rifle Ballistic Cannon Bore Cannon Build | -11 -10 -10 ------- Run | Scr Mat Min Slots Evolved . | . . . Power . | . . . Propulsion . | . . . Utility . | . . . Weapon . | . . . Parts Attached 32 | 9 17 6 Power 5 | 1 2 2 Engine 5 | 1 2 2 Core . | . . . Reactor . | . . . Propulsion 12 | 4 7 1 Treads . | . . . Leg 8 | 2 5 1 Wheel 4 | 2 2 . Hover . | . . . Flight . | . . . Utility 5 | 2 3 . Device 2 | 1 1 . Storage 3 | 1 2 . Processor . | . . . Hackware . | . . . Protection . | . . . Artifact . | . . . Weapon 10 | 2 5 3 Energy Gun 6 | 1 4 1 Energy Cannon 1 | . . 1 Ballistic Gun 2 | 1 1 . Ballistic Cannon 1 | . . 1 Launcher . | . . . Special Weapon . | . . . Impact Weapon . | . . . Slashing Weapon . | . . . Piercing Weapon . | . . . Special Melee Weapon . | . . . Unidentified Prototypes . | . . . Parts Lost 10 | . 4 6 Power 3 | . 1 2 Propulsion 3 | . 1 2 Utility 1 | . 1 . Weapon 3 | . 1 2 Highest Loss Streak 4 | . 2 4 Average Slot Usage (%) 99 | . 99 99 Engine 13 | . 13 14 Leg 27 | . 27 27 Device 3 | . 5 . Storage 24 | . 22 28 Energy Gun 24 | . 23 26 Ballistic Gun 3 | . 4 . Naked Turns . | . . . Heaviest Build 47 | 12 41 47 Greatest Support 20 | 20 20 20 Greatest Overweight (x) 15 | 1 2 15 Average Overweight (x) 1 | . 1 2 Largest Inventory Capacity 16 | 6 16 16 Average Capacity 14 | 5 13 16 Most Carried 16 | 6 16 16 Average Carried 13 | 5 12 15 Final Capacity 16 | 6 16 16 Final Carried 16 | 6 16 12 Class Distribution -------------------- 100% | Mutant Dominant Class ---------------- Mutant | -10/Materials Mutant | -10/Mines Resources | -11 -10 -10 ----------- Run | Scr Mat Min Matter Collected 576 | 302 235 39 Remotely 155 | 70 85 . Salvage Created 1106 | 173 648 285 Parts 78 | 13 52 13 Haulers Intercepted 2 | . 2 . Recyclers Shooed . | . . . Parts Field Recycled . | . . . Retrieved Matter . | . . . Parts Self-Destructed . | . . . Prevented . | . . . Kills | -11 -10 -10 ------- Run | Scr Mat Min Combat Hostiles Destroyed 27 | . 16 11 Guns 22 | . 16 6 Cannons 4 | . . 4 AOE 1 | . . 1 Classes Destroyed 9 | 3 5 1 Worker 3 | 1 2 . Tunneler 4 | 4 . . Hauler 2 | . 2 . Recycler 1 | 1 . . Operator 1 | . 1 . Watcher 2 | . 2 . Swarmer 12 | . 9 3 Grunt 12 | . 7 5 Assembled 3 | . . 3 Best Kill Streak 6 | 6 4 3 Combat Bots Only 3 | . 3 3 Max Kills in Single Turn 1 | 1 1 1 Gunslinging . | . . . Exploded 1 | . . 1 Melee . | . . . Uniques/NPCs Destroyed . | . . . Combat | -11 -10 -10 -------- Run | Scr Mat Min Damage Taken 1518 | . 659 859 Core 252 | . 131 121 Absorbed by Shields . | . . . Core Remaining (%) 100 | 100 . . Volleys Fired 102 | 12 57 33 Largest 2 | 2 2 2 Hottest 122 | 60 90 122 Shots Fired 193 | 24 110 59 Gun 174 | 24 110 40 Cannon 19 | . . 19 Launcher . | . . . Special . | . . . Kinetic 59 | 12 39 8 Thermal 83 | 12 45 26 Explosive . | . . . Electromagnetic 51 | . 26 25 Robot Hit Streak 10 | 4 10 8 Robot Miss Streak 5 | 2 5 4 Penetration Max . | . . . Secondary Targets 4 | . 4 . Max Gunslinging Chain 1 | . 1 . Shots Hit Robots 113 | 12 66 35 Core Hits 58 | 8 32 18 Critical Hits 4 | . . 4 Critical Kills 1 | . . 1 Critical Parts Destroyed 3 | . . 3 Melee Attacks . | . . . Impact . | . . . Slashing . | . . . Piercing . | . . . Sneak Attacks . | . . . Combat Hostiles . | . . . Follow-up Attacks . | . . . Damage Inflicted 1737 | 164 840 733 Guns 1349 | 164 840 345 Cannons 204 | . . 204 Explosions 184 | . . 184 Melee . | . . . Ramming . | . . . Kinetic 467 | 77 271 119 Thermal 750 | 87 295 368 Explosive . | . . . Electromagnetic 520 | . 274 246 Impact . | . . . Slashing . | . . . Piercing . | . . . Highest Corruption 1 | . 1 1 Average Corruption 1 | . 1 1 Corruption Purged . | . . . Effects 14 | . 9 5 Message Errors 6 | . 4 2 Energy Discharges 3 | . 3 . Data Loss (minor) 4 | . 1 3 Targeting Errors 1 | . 1 . Overload Shots . | . . . Overflow Damage 16 | . . 16 Projectiles . | . . . Explosions 16 | . . 16 Melee . | . . . Knockbacks 4 | . . 4 Impact . | . . . Kinetic 2 | . . 2 Secondary 2 | . . 2 Self-Inflicted Damage 63 | . . 63 Shots 2 | . . 2 Rammed . | . . . Targets Rammed . | . . . Kicked . | . . . Crushed . | . . . Highest Temperature 452 | 40 252 452 Average Temperature 123 | 17 66 206 Received Heat Transfer 468 | . 102 366 Effects 15 | . 2 13 Shutdowns 3 | . . 3 Energy Bleed 1 | . . 1 Interference 5 | . 2 3 Matter Decay 2 | . . 2 Short Circuit 2 | . . 2 Damage (major) 2 | . . 2 Siege Activations . | . . . Robots Corrupted . | . . . Combat Hostiles . | . . . Parts Fried 1 | . 1 . Impact Corruptions . | . . . Robots Melted . | . . . Combat Hostiles . | . . . Parts Melted 1 | . 1 . Heat Transferred 1825 | 200 816 809 Parts Sabotaged . | . . . Parts Stolen . | . . . Parts Stripped . | . . . Power Chain Reactions 3 | . . 3 Missiles Intercepted . | . . . Alert | -11 -10 -10 ------- Run | Scr Mat Min Peak Influence 220 | 30 220 124 Initial 24 | . 19 24 Average 71 | 10 98 28 Maximum Alert Level 1 | . 1 . Low Security (%) 94 | 100 91 100 Level 1 5 | . 8 . Level 2 . | . . . Level 3 . | . . . Level 4 . | . . . Level 5 . | . . . High Security . | . . . Max Security . | . . . Squads Dispatched 3 | . 3 . Investigation 2 | . 2 . Extermination . | . . . Reinforcement 1 | . 1 . Assault . | . . . Garrison . | . . . Intercept . | . . . Construction Impeded . | . . . Haulers Reinforced . | . . . Stealth | -11 -10 -10 --------- Run | Scr Mat Min Distress Signals 3 | . 1 2 Communications Jammed . | . . . Distress Signals . | . . . Times Spotted 36 | . 22 14 Peak Tracking Total 5 | . 4 5 Tactical Retreats 3 | . 1 2 Traps | -11 -10 -10 ------- Run | Scr Mat Min Traps Triggered 3 | . 3 . Indirectly . | . . . Trap Hack Attempts . | . . . Triggered . | . . . Disarmed . | . . . Reprogrammed 5 | . 5 . Reused . | . . . Traps Extracted . | . . . Installed . | . . . Triggered . | . . . Machines | -11 -10 -10 ---------- Run | Scr Mat Min Machines Disabled 1 | . 1 . Max in Single Turn 1 | . 1 . Machines Sabotaged . | . . . Garrisons Compromised . | . . . Overloaded Fab Kills . | . . . Fab Network Shutdowns . | . . . Hacking | -11 -10 -10 --------- Run | Scr Mat Min Machines Accessed 9 | . 9 . Terminals 7 | . 7 . Fabricators . | . . . Repair Stations 1 | . 1 . Recycling Units 1 | . 1 . Scanalyzers . | . . . Garrison Access . | . . . Total Hacks 44 | . 44 . Successful 28 | . 28 . Failed 16 | . 16 . Catastrophic . | . . . Database Lockouts . | . . . Manual 26 | . 26 . Terminals 38 | . 38 . Fabricators . | . . . Repair Stations 3 | . 3 . Recycling Units 3 | . 3 . Scanalyzers . | . . . Garrison Access . | . . . Terminal Hacks 7 | . 7 . Record 2 | . 2 . Locate Traps 1 | . 1 . Reprogram Traps 1 | . 1 . Patrol Status 1 | . 1 . Hauler Manifests 1 | . 1 . Zone Layout 1 | . 1 . Fabricator Hacks . | . . . Repair Station Hacks 3 | . 3 . Scan Component 1 | . 1 . Repair 1 | . 1 . Refit 1 | . 1 . Recycling Unit Hacks 1 | . 1 . Report Inventory 1 | . 1 . Scanalyzer . | . . . Garrison Access Hacks . | . . . Unauthorized Hacks 17 | . 17 . Terminals 16 | . 16 . Track 6 | . 6 . Assimilate 3 | . 3 . Botnet 5 | . 5 . Detonate 2 | . 2 . Fabricators . | . . . Repair Stations . | . . . Recycling Units 1 | . 1 . Reject 1 | . 1 . Scanalyzers . | . . . Garrison Access . | . . . Data Cores Recovered . | . . . Used . | . . . Hacking Detections 9 | . 9 . Full Trace Events . | . . . Feedback Events . | . . . Feedback Blocked . | . . . Robot Schematics Acquired . | . . . Robots Built . | . . . Matter . | . . . Time . | . . . Total Robot Build Rating . | . . . Part Schematics Acquired . | . . . Parts Built . | . . . Matter . | . . . Time . | . . . Total Part Build Rating . | . . . Parts Repaired 1 | . 1 . Time 26 | . 26 . Parts Recycled . | . . . Recycled Matter . | . . . Retrieved Matter . | . . . Retrieved Components . | . . . Parts Scanalyzed . | . . . Part Schematics Acquired . | . . . Parts Damaged . | . . . Bothacking | -11 -10 -10 ------------ Run | Scr Mat Min Used RIF Installer . | . . . Robots Hacked . | . . . Non-combat . | . . . Combat . | . . . Robot Hacks Applied . | . . . Relay Couplers Released . | . . . Robots Rewired . | . . . Allies Hacked . | . . . Hacks Repelled . | . . . Allies | -11 -10 -10 -------- Run | Scr Mat Min Total Allies . | . . . Largest Group . | . . . Highest-Rated Group . | . . . Highest-Rated Ally . | . . . Total Orders . | . . . Ally Attacks . | . . . Total Damage . | . . . Kills . | . . . Allies Corrupted . | . . . Allies Melted . | . . . Intel | -11 -10 -10 ------- Run | Scr Mat Min Robot Analysis Total . | . . . Derelict Logs Recovered . | . . . Drone Launches . | . . . Drone Recoveries . | . . . Exploration | -11 -10 -10 ------------- Run | Scr Mat Min Turns Passed 2828 | 124 1785 919 Spaces Moved 1147 | 67 830 250 Core 25 | 23 . 2 Treads . | . . . Legs 1101 | 30 823 248 Wheels 21 | 14 7 . Hover . | . . . Flight . | . . . Fastest Speed 50 | 50 90 180 Average Speed 165 | 92 165 184 Slowest Speed 800 | 120 180 800 Overloaded Moves . | . . . Propulsion Burnouts . | . . . Robots Hopped . | . . . Cave-ins Triggered . | . . . Exploration Rate (%) 44 | 4 95 34 Regions Visited 2 Branch Regions 1 Pre-discovered Areas . | . . . Known Exits Taken . | . . . Unknown Exits Taken 2 | 1 1 . Scrap Searched 1 | . . 1 Spaces Dug . | . . . Terrain Destroyed 21 | . . 21 Melee . | . . . Projectile 4 | . . 4 AOE 17 | . . 17 Terrain Rammed . | . . . Walls Destroyed . | . . . Machines Disabled . | . . . Actions | -11 -10 -10 --------- Run | Scr Mat Min Total 1895 | 103 1143 649 Wait 554 | 9 187 358 Move 1145 | 66 829 250 Hop . | . . . Pick Up 37 | 7 29 1 Fast Attach 9 | 6 3 . Attach 8 | 1 3 4 Detach . | . . . Swap 15 | 2 11 2 Drop 25 | . 24 1 Fire 102 | 12 57 33 Melee . | . . . Ram . | . . . Kick . | . . . Crush . | . . . Escape Stasis . | . . . Rewire . | . . . Trap . | . . . Miscellaneous . | . . . Route ------- -11/Scrapyard -10/Materials (discovered 4 exits: [*Mat x3] / [*Min]) -10/Mines History --------- Turn | Location | Event 7 | -11/Scrapyard | Discovered new exit (range 16) 125 | -11/Scrapyard | Entered Materials 304 | -10/Materials | Build established: Mutant 627 | -10/Materials | Discovered new exit (range 9) 1063 | -10/Materials | Discovered new exit (range 5) 1361 | -10/Materials | Discovered new exit (range 18) 1436 | -10/Materials | Core integrity fell below 50% 1651 | -10/Materials | Discovered new exit (range 7) 1767 | -10/Materials | Repaired Med. Laser 1910 | -10/Materials | Entered Mines 1971 | -10/Mines | Excavation squad dispatched 1971 | -10/Mines | A large section of the Mines collapsed 2116 | -10/Mines | A weapon hastily lodged in a ceiling crevice suddenly fell to the ground 2221 | -10/Mines | Excavation squad dispatched 2471 | -10/Mines | Excavation squad dispatched 2721 | -10/Mines | Excavation squad dispatched 2811 | -10/Mines | Core integrity fell below 20% 2829 | -10/Mines | Destroyed by G-34 Mercenary with Small Laser Last Messages --------------- 02798_ Acquired 29 matter. 02798_ U-05 Engineer lays Concrete. 02799_ U-05 Engineer builds a Wall. 02802_ G-34 Mercenary misfires. 02802_ HV Slug penetrates Wall. 02804_ U-05 Engineer lays Concrete. 02805_ Overheating: System interference. 02805_ Bore Cannon temporarily disabled. 02805_ Beam Cannon temporarily disabled. 02805_ U-05 Engineer builds a Wall. 02807_ Overheating: Beam Cannon damaged (-8). 02807_ Overheating: Bore Cannon damaged (-52). 02812_ G-34 Mercenary misfires. 02815_ D3LBHN|PR9ZD9DTI%0==X 02828_ G-34 Mercenary destroyed. Map ----- +----------------------------------------------------+ | | | | | | | | | | | | | | | ???????????????????????????????????????????? | | ????????????????????????#############??????? | | ????????????????????????# #??????? | | ????????????????????????# """ """ #??????? | | ????????????????????????# """ """ #??????? | | ????????????????????????# """ """ #??????? | | ????????????????????????# #??????? | | ????????????????????????# #??????? | | ??????????????####??????# * #??????? | | ????????????## ##?????# [=%= #??????? | | ???????????## #?????###"%=#######??????? | | ???????????# #?####??#"*"#????????????? | | ???????????# ### ##?## ##????????????? | | ???????????## ### ##?#%#?????????????? | | ???????????## ##?# t #?# #?????????????? | | ??????????## #??# #?# #?????????????? | | ????????### ##?## #??# #?????????????? | | ??###??## ##??# #??# #?????????????? | | ?## ### ######@ #??# #?????????????? | | ?# ######% #### #?????????????? | | ??# ###*=[gg t #?????????????? | | ??## = ####%#### #?????????????? | | ???## ##?#"%###############?????????????? | | ????## #??##*##??????????????????????????? | | ?????## ##### #???????????????????????????? | | ??????#% "???????????????????????????? | | ???#### ##### "???????????????????????????? | | ??## #???# #???????????????????????????? | | ??# ##??# #???????????????????????????? | | ??# ##?# #???????????????????????????? | | ??## %### #???????????????????????????? | | ???#######! ###?????????????????????????? | | ?????????## "" ##????????????????????????? | | ??????????#=% "#????????????????????????? | | ??????????## % ##???????????????????????? | | ???????????# "#???????????????????????? | | ???????????## #???????????????????????? | | ???????????### ##???????????????????????? | | ???????????### "#????????????????????????? | | ???????????##"=! #????????????????????????? | | ???????????##!%|"##????????????????????????? | | ??????##???##*= #????????????????????????? | | ?????? ??? # #????????????????????????? | +----------------------------------------------------+ Best States ------------- Heat Dissipation 35 Energy Generation 10 Energy Capacity 250 Matter Stores 300 Matter Capacity 300 Sight Range 16 Terrain Scan Density 10 Evasion (%) 50 Item Schematics ----------------- None Robot Schematics ------------------ None Fabricated ------------ Nothing Alien Tech Used ----------------- None Achievements -------------- Quantum Hacking True Hacker Use The Force root@ Challenges ------------ None Game ------ Seed GatlingLightWarhead Manual? 0 Play Time 00:41:51 Cumulative 3.4 hours Start 2021.10.14 @ 14:07:36 End 2021.10.14 @ 15:26:09 Sessions 1 Manual Loads 0 Difficulty Rogue Special Mode None Game No. 4 Rogue 4 Adventurer 0 Explorer 0 Win Type - Total 0 Types 0/0/0/0/0/0/0/0/0 Lore% 6 Gallery% 4 Achievement% 6 Wizard Run 0 Options --------- ASCII 0 Keyboard 0 Movement Mouse Keybinds 0 Fullscreen 2 Font 18/SmallcapsGlow Map View 76x50 Tactical HUD 1 Map Filters NONE Filters NONE Steam 1 RUN: 6d4a8587-8a1b-46f3-a36a-c51128e72cbf